[Event "Betsys MČR v online bleskovém šachu 2021"]
[Site "Chess.com"]
[Date "2021.04.17"]
[Round "8"]
[White "nw_tynka"]
[Black "Pekibeast"]
[Result "1-0"]
[WhiteElo "2179"]
[BlackElo "1874"]
[TimeControl "180+1"]
[EndTime "10:20:28 PDT"]
[Termination "Uživatel nw_tynka zvítězil po vzdání soupeře"]

1. e4 {[%clk 0:03:00.9]} 1... e6 {[%clk 0:02:54.8]} 2. d4 {[%clk 0:03:00.4]}
2... d5 {[%clk 0:02:53.6]} 3. Nc3 {[%clk 0:03:00.8]} 3... dxe4 {[%clk
0:02:53.6]} 4. Nxe4 {[%clk 0:03:00.4]} 4... Nf6 {[%clk 0:02:54.5]} 5. Bd3 {[%clk
0:02:57.5]} 5... Nxe4 {[%clk 0:02:53.2]} 6. Bxe4 {[%clk 0:02:57.1]} 6... Nd7
{[%clk 0:02:54.1]} 7. Ne2 {[%clk 0:02:48.5]} 7... Nf6 {[%clk 0:02:54.3]} 8. Bf3
{[%clk 0:02:48.2]} 8... c6 {[%clk 0:02:53.6]} 9. O-O {[%clk 0:02:46.6]} 9... Bd6
{[%clk 0:02:53.7]} 10. c3 {[%clk 0:02:36.2]} 10... O-O {[%clk 0:02:50.2]} 11.
Bf4 {[%clk 0:02:34.8]} 11... Re8 {[%clk 0:02:49.6]} 12. Re1 {[%clk 0:02:18.1]}
12... Qc7 {[%clk 0:02:47.3]} 13. Bxd6 {[%clk 0:01:58.6]} 13... Qxd6 {[%clk
0:02:47.3]} 14. Qb3 {[%clk 0:01:58.3]} 14... Rb8 {[%clk 0:02:45.7]} 15. Ng3
{[%clk 0:01:53.7]} 15... Bd7 {[%clk 0:02:41.7]} 16. Re5 {[%clk 0:01:46.6]} 16...
Rec8 {[%clk 0:02:28.1]} 17. Rae1 {[%clk 0:01:33.1]} 17... c5 {[%clk 0:02:22]}
18. dxc5 {[%clk 0:01:24.7]} 18... Rxc5 {[%clk 0:02:22]} 19. Rxc5 {[%clk
0:01:23.8]} 19... Qxc5 {[%clk 0:02:22.9]} 20. Rd1 {[%clk 0:01:22]} 20... Bc6
{[%clk 0:02:15.6]} 21. Bxc6 {[%clk 0:01:05.3]} 21... Qxc6 {[%clk 0:02:16.5]} 22.
Qa3 {[%clk 0:01:04]} 22... Nd5 {[%clk 0:02:13.9]} 23. Ne2 {[%clk 0:00:44.1]}
23... a6 {[%clk 0:02:12]} 24. Nd4 {[%clk 0:00:40.8]} 24... Qc7 {[%clk
0:02:10.4]} 25. Qb3 {[%clk 0:00:31.7]} 25... Rd8 {[%clk 0:02:08.9]} 26. Nf3
{[%clk 0:00:28.4]} 26... Rc8 {[%clk 0:02:03.7]} 27. g3 {[%clk 0:00:26.5]} 27...
h6 {[%clk 0:02:02.6]} 28. Rd4 {[%clk 0:00:24.1]} 28... Qc5 {[%clk 0:01:58]} 29.
Qd1 {[%clk 0:00:21.5]} 29... b5 {[%clk 0:01:54.1]} 30. a4 {[%clk 0:00:20.1]}
30... Rd8 {[%clk 0:01:50.7]} 31. axb5 {[%clk 0:00:19.6]} 31... axb5 {[%clk
0:01:51.6]} 32. Nd2 {[%clk 0:00:18.1]} 32... e5 {[%clk 0:01:41.6]} 33. Ne4
{[%clk 0:00:16.9]} 33... Qc6 {[%clk 0:01:40.3]} 34. Rd2 {[%clk 0:00:16.1]} 34...
f5 {[%clk 0:01:38.3]} 35. c4 {[%clk 0:00:13.8]} 35... bxc4 {[%clk 0:01:31.8]}
36. Nc3 {[%clk 0:00:13.1]} 36... e4 {[%clk 0:01:25]} 37. Rxd5 {[%clk 0:00:12.5]}
37... Rf8 {[%clk 0:01:25.3]} 38. Rd8 {[%clk 0:00:11.6]} 38... e3 {[%clk
0:01:24.7]} 39. fxe3 {[%clk 0:00:10.8]} 39... Qb6 {[%clk 0:01:22.3]} 40. Rxf8+
{[%clk 0:00:10]} 40... Kxf8 {[%clk 0:01:23.2]} 41. Qd2 {[%clk 0:00:07.6]} 41...
Ke7 {[%clk 0:01:22.4]} 42. Nd5+ {[%clk 0:00:07.4]} 1-0

[Event "Betsys MČR v online bleskovém šachu 2021"]
[Site "Chess.com"]
[Date "2021.04.17"]
[Round "8"]
[White "Svisthorsky"]
[Black "dzerenyss"]
[Result "1-0"]
[WhiteElo "1462"]
[BlackElo "1103"]
[TimeControl "180+1"]
[EndTime "10:20:29 PDT"]
[Termination "Uživatel Svisthorsky zvítězil na čas"]

1. d4 {[%clk 0:03:00.9]} 1... d5 {[%clk 0:02:58.4]} 2. Bf4 {[%clk 0:03:00.5]}
2... e6 {[%clk 0:02:54.9]} 3. c4 {[%clk 0:02:59.1]} 3... c6 {[%clk 0:02:53.7]}
4. Nc3 {[%clk 0:02:57.5]} 4... Bb4 {[%clk 0:02:44.3]} 5. a3 {[%clk 0:02:55.2]}
5... Ba5 {[%clk 0:02:39]} 6. b4 {[%clk 0:02:53.9]} 6... Bb6 {[%clk 0:02:37.9]}
7. Nf3 {[%clk 0:02:49.5]} 7... Nf6 {[%clk 0:02:33.8]} 8. e3 {[%clk 0:02:43.9]}
8... Nbd7 {[%clk 0:02:29.3]} 9. Bg5 {[%clk 0:02:33]} 9... O-O {[%clk 0:02:25.2]}
10. Bd3 {[%clk 0:02:32.3]} 10... h6 {[%clk 0:02:23.9]} 11. Bh4 {[%clk
0:02:29.4]} 11... Qe8 {[%clk 0:02:00.3]} 12. O-O {[%clk 0:02:15.9]} 12... Bc7
{[%clk 0:01:44.2]} 13. b5 {[%clk 0:02:10.7]} 13... cxb5 {[%clk 0:01:33.4]} 14.
Nxb5 {[%clk 0:02:09.2]} 14... Ba5 {[%clk 0:01:13.1]} 15. Bg3 {[%clk 0:02:03.7]}
15... Ne4 {[%clk 0:00:54.7]} 16. Bxe4 {[%clk 0:01:50.5]} 16... dxe4 {[%clk
0:00:53.6]} 17. Nd2 {[%clk 0:01:45.9]} 17... Nf6 {[%clk 0:00:30.6]} 18. Bd6
{[%clk 0:01:21.6]} 18... a6 {[%clk 0:00:20.1]} 19. Bxf8 {[%clk 0:01:05.7]} 19...
Qxf8 {[%clk 0:00:16.2]} 20. Qa4 {[%clk 0:00:58.1]} 20... axb5 {[%clk 0:00:13]}
21. cxb5 {[%clk 0:00:51.1]} 21... Bxd2 {[%clk 0:00:12.4]} 22. Qxa8 {[%clk
0:00:48.8]} 22... Bc3 {[%clk 0:00:10.6]} 23. Rac1 {[%clk 0:00:45.5]} 23... Bb2
{[%clk 0:00:09.4]} 24. Rxc8 {[%clk 0:00:44.1]} 24... Ne8 {[%clk 0:00:03.9]} 25.
Rxe8 {[%clk 0:00:42.7]} 1-0

[Event "Betsys MČR v online bleskovém šachu 2021"]
[Site "Chess.com"]
[Date "2021.04.17"]
[Round "8"]
[White "chessbeer17"]
[Black "Rubinus"]
[Result "1-0"]
[WhiteElo "2353"]
[BlackElo "2170"]
[TimeControl "180+1"]
[EndTime "10:20:33 PDT"]
[Termination "Uživatel chessbeer17 zvítězil po vzdání soupeře"]

1. d4 {[%clk 0:03:00.9]} 1... d5 {[%clk 0:02:58.1]} 2. c4 {[%clk 0:03:01.3]}
2... Nc6 {[%clk 0:02:57.9]} 3. e3 {[%clk 0:02:56.5]} 3... e5 {[%clk 0:02:54]} 4.
cxd5 {[%clk 0:02:56.8]} 4... Qxd5 {[%clk 0:02:52.9]} 5. Nc3 {[%clk 0:02:56.9]}
5... Bb4 {[%clk 0:02:51.7]} 6. Nf3 {[%clk 0:02:31.9]} 6... exd4 {[%clk
0:02:41.6]} 7. Nxd4 {[%clk 0:02:29.4]} 7... Nxd4 {[%clk 0:02:39.2]} 8. Qxd4
{[%clk 0:02:29]} 8... Qxd4 {[%clk 0:02:37.6]} 9. exd4 {[%clk 0:02:29.9]} 9... c6
{[%clk 0:02:33.5]} 10. Bc4 {[%clk 0:02:27]} 10... Nf6 {[%clk 0:02:29.9]} 11. O-O
{[%clk 0:02:22.1]} 11... O-O {[%clk 0:02:28.4]} 12. Bg5 {[%clk 0:02:19.6]} 12...
Bxc3 {[%clk 0:02:20.5]} 13. bxc3 {[%clk 0:01:43.7]} 13... Ne4 {[%clk 0:02:18]}
14. Be7 {[%clk 0:01:29.8]} 14... Re8 {[%clk 0:02:17]} 15. Bb4 {[%clk 0:01:29.7]}
15... a5 {[%clk 0:02:16.2]} 16. f3 {[%clk 0:01:28.6]} 16... axb4 {[%clk
0:02:06.3]} 17. fxe4 {[%clk 0:01:27.4]} 17... Be6 {[%clk 0:02:03.6]} 18. d5
{[%clk 0:01:25.5]} 18... cxd5 {[%clk 0:02:00.5]} 19. exd5 {[%clk 0:01:25.4]}
19... Bg4 {[%clk 0:01:50.9]} 20. cxb4 {[%clk 0:01:25.2]} 20... Re4 {[%clk
0:01:46.3]} 21. Rac1 {[%clk 0:01:18.3]} 21... Rc8 {[%clk 0:01:39.8]} 22. Bb3
{[%clk 0:01:04.5]} 22... Rxc1 {[%clk 0:01:34.6]} 23. Rxc1 {[%clk 0:01:05.4]}
23... Rxb4 {[%clk 0:01:27.1]} 24. h3 {[%clk 0:01:05.7]} 24... Bd7 {[%clk
0:01:21.6]} 25. Rc7 {[%clk 0:01:04.1]} 25... Be8 {[%clk 0:01:15.8]} 26. d6
{[%clk 0:00:43.5]} 26... Rd4 {[%clk 0:01:09.5]} 27. Rc8 {[%clk 0:00:40.9]} 27...
Kf8 {[%clk 0:01:05.4]} 28. Ba4 {[%clk 0:00:35.1]} 28... Rxa4 {[%clk 0:01:00.2]}
29. d7 {[%clk 0:00:35.3]} 29... Re4 {[%clk 0:00:53.9]} 30. d8=Q {[%clk
0:00:34.7]} 30... g6 {[%clk 0:00:51.9]} 31. Qd6+ {[%clk 0:00:33.6]} 31... Kg7
{[%clk 0:00:51.3]} 32. Qd5 {[%clk 0:00:32.8]} 32... Re6 {[%clk 0:00:48.7]} 33.
Rc7 {[%clk 0:00:30.3]} 33... Kf6 {[%clk 0:00:45.4]} 34. Qd4+ {[%clk 0:00:30.4]}
34... Kf5 {[%clk 0:00:39.4]} 35. Rc5+ {[%clk 0:00:28.4]} 1-0

[Event "Betsys MČR v online bleskovém šachu 2021"]
[Site "Chess.com"]
[Date "2021.04.17"]
[Round "8"]
[White "LiborRojar"]
[Black "OlifantCZ"]
[Result "0-1"]
[WhiteElo "2075"]
[BlackElo "2295"]
[TimeControl "180+1"]
[EndTime "10:20:33 PDT"]
[Termination "Uživatel OlifantCZ zvítězil matem"]

1. e4 {[%clk 0:03:00.9]} 1... e6 {[%clk 0:02:59.6]} 2. d4 {[%clk 0:03:00.4]}
2... d5 {[%clk 0:02:58.6]} 3. e5 {[%clk 0:03:00.7]} 3... c5 {[%clk 0:02:58.4]}
4. Qg4 {[%clk 0:03:00.5]} 4... cxd4 {[%clk 0:02:54.7]} 5. Nf3 {[%clk 0:03:00.5]}
5... Nc6 {[%clk 0:02:54.9]} 6. Bd3 {[%clk 0:03:00.5]} 6... Nge7 {[%clk
0:02:50.5]} 7. O-O {[%clk 0:03:00.2]} 7... Ng6 {[%clk 0:02:42]} 8. Re1 {[%clk
0:02:59.5]} 8... Bb4 {[%clk 0:02:38]} 9. Bd2 {[%clk 0:02:58.7]} 9... Bxd2 {[%clk
0:02:33.5]} 10. Nbxd2 {[%clk 0:02:58.7]} 10... Qc7 {[%clk 0:02:34]} 11. Qg3
{[%clk 0:02:57.6]} 11... Bd7 {[%clk 0:02:31.5]} 12. Nb3 {[%clk 0:02:57.5]} 12...
O-O-O {[%clk 0:02:22.4]} 13. Nbxd4 {[%clk 0:02:54.9]} 13... Nxd4 {[%clk
0:02:21.2]} 14. Nxd4 {[%clk 0:02:54.6]} 14... Kb8 {[%clk 0:02:20.7]} 15. a4
{[%clk 0:02:46.9]} 15... Rhg8 {[%clk 0:02:02.1]} 16. a5 {[%clk 0:02:36.5]} 16...
Rde8 {[%clk 0:01:40.4]} 17. Qe3 {[%clk 0:02:32]} 17... f6 {[%clk 0:01:30.8]} 18.
f4 {[%clk 0:02:23]} 18... f5 {[%clk 0:01:05.6]} 19. Ra3 {[%clk 0:02:05.2]} 19...
Ne7 {[%clk 0:01:01.2]} 20. b4 {[%clk 0:02:03.4]} 20... h6 {[%clk 0:00:56.7]} 21.
Bb5 {[%clk 0:01:54.3]} 21... g5 {[%clk 0:00:48]} 22. a6 {[%clk 0:01:45.8]} 22...
b6 {[%clk 0:00:46.5]} 23. Rc1 {[%clk 0:01:35.4]} 23... Bxb5 {[%clk 0:00:39.7]}
24. Nxb5 {[%clk 0:01:34.8]} 24... Qd7 {[%clk 0:00:37.7]} 25. Nd6 {[%clk
0:01:33.8]} 25... gxf4 {[%clk 0:00:34.6]} 26. Qxf4 {[%clk 0:01:33.1]} 26... Rg4
{[%clk 0:00:32.9]} 27. Qe3 {[%clk 0:01:24.8]} 27... Reg8 {[%clk 0:00:32.4]} 28.
g3 {[%clk 0:01:24]} 28... f4 {[%clk 0:00:31.8]} 29. Qf2 {[%clk 0:01:20.4]} 29...
fxg3 {[%clk 0:00:31.3]} 30. Rxg3 {[%clk 0:01:19.2]} 30... Nc6 {[%clk 0:00:30.2]}
31. b5 {[%clk 0:01:16.7]} 31... Nxe5 {[%clk 0:00:29.1]} 32. Nb7 {[%clk
0:01:08.2]} 32... Rxg3+ {[%clk 0:00:22.9]} 33. hxg3 {[%clk 0:01:07.4]} 33... Qg7
{[%clk 0:00:22.4]} 34. Kg2 {[%clk 0:01:07]} 34... Ng4 {[%clk 0:00:18.3]} 35. Qf3
{[%clk 0:01:04.4]} 35... Qd4 {[%clk 0:00:15.2]} 36. Nd6 {[%clk 0:01:02]} 36...
Qd2+ {[%clk 0:00:13.1]} 37. Kh3 {[%clk 0:01:00.7]} 37... Nf2+ {[%clk 0:00:12.2]}
38. Kh4 {[%clk 0:00:58.6]} 38... Qg5# {[%clk 0:00:12.1]} 0-1

[Event "Betsys MČR v online bleskovém šachu 2021"]
[Site "Chess.com"]
[Date "2021.04.17"]
[Round "8"]
[White "DiscoSTU666"]
[Black "Devasales"]
[Result "1-0"]
[WhiteElo "1878"]
[BlackElo "1614"]
[TimeControl "180+1"]
[EndTime "10:20:33 PDT"]
[Termination "Uživatel DiscoSTU666 zvítězil po vzdání soupeře"]

1. e4 {[%clk 0:03:00.9]} 1... c5 {[%clk 0:02:59.4]} 2. Nf3 {[%clk 0:02:59.6]}
2... d6 {[%clk 0:02:58.7]} 3. d4 {[%clk 0:02:58.8]} 3... cxd4 {[%clk 0:02:58.3]}
4. Nxd4 {[%clk 0:02:58.7]} 4... Nf6 {[%clk 0:02:57.7]} 5. Nc3 {[%clk 0:02:57.6]}
5... g6 {[%clk 0:02:57]} 6. Be3 {[%clk 0:02:55.2]} 6... Bg7 {[%clk 0:02:56.3]}
7. f3 {[%clk 0:02:53.9]} 7... a6 {[%clk 0:02:55.4]} 8. Qd2 {[%clk 0:02:48.5]}
8... Bd7 {[%clk 0:02:50.1]} 9. O-O-O {[%clk 0:02:47.3]} 9... Nc6 {[%clk
0:02:46]} 10. Kb1 {[%clk 0:02:43.3]} 10... b5 {[%clk 0:02:42.7]} 11. g4 {[%clk
0:02:35]} 11... b4 {[%clk 0:02:41.2]} 12. Nce2 {[%clk 0:02:33.4]} 12... a5
{[%clk 0:02:00.1]} 13. h4 {[%clk 0:02:12]} 13... h5 {[%clk 0:01:44.2]} 14. gxh5
{[%clk 0:02:00.4]} 14... Nxh5 {[%clk 0:01:42.1]} 15. f4 {[%clk 0:02:00.8]} 15...
Qc7 {[%clk 0:01:29.3]} 16. Bh3 {[%clk 0:01:45.2]} 16... Nxd4 {[%clk 0:01:12.2]}
17. Bxd4 {[%clk 0:01:33.4]} 17... Bxd4 {[%clk 0:00:57.6]} 18. Qxd4 {[%clk
0:01:30.7]} 18... Rf8 {[%clk 0:00:47]} 19. Bxd7+ {[%clk 0:01:24.5]} 19... Qxd7
{[%clk 0:00:45.6]} 20. e5 {[%clk 0:01:24.8]} 20... Rd8 {[%clk 0:00:41.5]} 21.
Qb6 {[%clk 0:01:07.4]} 21... Ng7 {[%clk 0:00:35]} 22. exd6 {[%clk 0:01:02.9]}
22... exd6 {[%clk 0:00:33.7]} 23. Rhe1 {[%clk 0:01:03.3]} 23... Ne6 {[%clk
0:00:32.6]} 24. Nd4 {[%clk 0:00:57.2]} 24... Ke7 {[%clk 0:00:27.6]} 25. f5
{[%clk 0:00:56]} 25... gxf5 {[%clk 0:00:26.7]} 26. Nxf5+ {[%clk 0:00:54.2]}
26... Kf6 {[%clk 0:00:24.2]} 27. Nxd6 {[%clk 0:00:45.6]} 27... Rb8 {[%clk
0:00:15.9]} 28. Ne4+ {[%clk 0:00:35.5]} 1-0

[Event "Betsys MČR v online bleskovém šachu 2021"]
[Site "Chess.com"]
[Date "2021.04.17"]
[Round "8"]
[White "MBorkovec"]
[Black "MrNikdo"]
[Result "1-0"]
[WhiteElo "2280"]
[BlackElo "2047"]
[TimeControl "180+1"]
[EndTime "10:20:36 PDT"]
[Termination "Uživatel MBorkovec zvítězil po vzdání soupeře"]

1. e4 {[%clk 0:03:00.9]} 1... c5 {[%clk 0:02:55.9]} 2. Nf3 {[%clk 0:03:00.9]}
2... Nc6 {[%clk 0:02:52.3]} 3. d4 {[%clk 0:03:00.9]} 3... cxd4 {[%clk
0:02:53.2]} 4. Nxd4 {[%clk 0:03:01.2]} 4... Nf6 {[%clk 0:02:53.9]} 5. Nc3 {[%clk
0:03:01.4]} 5... e5 {[%clk 0:02:54.4]} 6. Ndb5 {[%clk 0:03:01.4]} 6... d6 {[%clk
0:02:54.9]} 7. Bg5 {[%clk 0:03:00.8]} 7... a6 {[%clk 0:02:55.3]} 8. Na3 {[%clk
0:03:00.5]} 8... b5 {[%clk 0:02:55.4]} 9. Nd5 {[%clk 0:02:59.5]} 9... Qa5+
{[%clk 0:02:54.9]} 10. Bd2 {[%clk 0:02:56.4]} 10... Qd8 {[%clk 0:02:54.2]} 11.
Bg5 {[%clk 0:02:56.5]} 11... Qa5+ {[%clk 0:02:53.8]} 12. Bd2 {[%clk 0:02:56.5]}
12... Qd8 {[%clk 0:02:53.9]} 13. Nxf6+ {[%clk 0:02:56.1]} 13... Qxf6 {[%clk
0:02:54.8]} 14. c3 {[%clk 0:02:56.6]} 14... Qg6 {[%clk 0:02:53]} 15. Qe2 {[%clk
0:02:48.5]} 15... Be7 {[%clk 0:02:50.9]} 16. g3 {[%clk 0:02:48.4]} 16... Bg4
{[%clk 0:02:50.8]} 17. f3 {[%clk 0:02:47.3]} 17... Be6 {[%clk 0:02:46.6]} 18.
Bg2 {[%clk 0:02:46.3]} 18... O-O {[%clk 0:02:35.9]} 19. O-O {[%clk 0:02:45.7]}
19... d5 {[%clk 0:02:36.4]} 20. exd5 {[%clk 0:02:45.2]} 20... Bxd5 {[%clk
0:02:36]} 21. Rfe1 {[%clk 0:02:23.8]} 21... Rae8 {[%clk 0:02:16.9]} 22. Nc2
{[%clk 0:02:22.7]} 22... Bc4 {[%clk 0:02:14.4]} 23. Qd1 {[%clk 0:02:08.8]} 23...
Bd3 {[%clk 0:02:06.8]} 24. Ne3 {[%clk 0:02:04]} 24... Bc5 {[%clk 0:02:04.7]} 25.
Kh1 {[%clk 0:02:03.9]} 25... f5 {[%clk 0:01:59.7]} 26. a4 {[%clk 0:01:47.7]}
26... f4 {[%clk 0:01:47.9]} 27. Ng4 {[%clk 0:01:06.6]} 27... h5 {[%clk
0:01:36.8]} 28. axb5 {[%clk 0:01:06.2]} 28... axb5 {[%clk 0:01:16.2]} 29. gxf4
{[%clk 0:00:55.1]} 29... exf4 {[%clk 0:01:17.1]} 30. Rxe8 {[%clk 0:00:52.9]}
30... Rxe8 {[%clk 0:01:14.8]} 31. Bxf4 {[%clk 0:00:39.2]} 31... hxg4 {[%clk
0:01:14.3]} 32. fxg4 {[%clk 0:00:39.4]} 32... Re2 {[%clk 0:01:00.2]} 33. Ra6
{[%clk 0:00:31.7]} 33... Be4 {[%clk 0:01:00.2]} 34. Qxe2 {[%clk 0:00:26.2]}
34... Bxg2+ {[%clk 0:00:45.1]} 35. Kxg2 {[%clk 0:00:26.3]} 35... Qb1 {[%clk
0:00:45.4]} 36. Rxc6 {[%clk 0:00:23.7]} 1-0

[Event "Betsys MČR v online bleskovém šachu 2021"]
[Site "Chess.com"]
[Date "2021.04.17"]
[Round "8"]
[White "HCMotorCB"]
[Black "penguinorodriguez"]
[Result "0-1"]
[WhiteElo "2381"]
[BlackElo "2546"]
[TimeControl "180+1"]
[EndTime "10:20:43 PDT"]
[Termination "Uživatel penguinorodriguez zvítězil po vzdání soupeře"]

1. d4 {[%clk 0:03:00.9]} 1... e6 {[%clk 0:02:58.9]} 2. g3 {[%clk 0:03:01]} 2...
d5 {[%clk 0:02:55.1]} 3. Bg2 {[%clk 0:03:01.2]} 3... f5 {[%clk 0:02:55.3]} 4.
Nf3 {[%clk 0:03:00.1]} 4... Nf6 {[%clk 0:02:55.6]} 5. Bf4 {[%clk 0:02:58.8]}
5... Bd6 {[%clk 0:02:55.1]} 6. Nbd2 {[%clk 0:02:57.7]} 6... b5 {[%clk 0:02:51]}
7. c3 {[%clk 0:02:51.8]} 7... Nc6 {[%clk 0:02:32.4]} 8. O-O {[%clk 0:02:49.4]}
8... O-O {[%clk 0:02:30.9]} 9. a4 {[%clk 0:02:45.9]} 9... b4 {[%clk 0:02:29.2]}
10. c4 {[%clk 0:02:46]} 10... Ba6 {[%clk 0:02:18.1]} 11. Rc1 {[%clk 0:02:36]}
11... Bxf4 {[%clk 0:01:55.4]} 12. gxf4 {[%clk 0:02:33.2]} 12... Qd6 {[%clk
0:01:49.7]} 13. e3 {[%clk 0:02:31.6]} 13... Ne4 {[%clk 0:01:46.9]} 14. Re1
{[%clk 0:02:19.8]} 14... Na5 {[%clk 0:01:37]} 15. c5 {[%clk 0:02:12.8]} 15...
Qd8 {[%clk 0:01:28.2]} 16. Nxe4 {[%clk 0:02:12.2]} 16... fxe4 {[%clk 0:01:02.4]}
17. Ne5 {[%clk 0:02:12]} 17... Qf6 {[%clk 0:01:01.3]} 18. Kh1 {[%clk 0:02:10.9]}
18... Nc4 {[%clk 0:00:57.5]} 19. Nd7 {[%clk 0:02:04.9]} 19... Qh4 {[%clk
0:00:54.1]} 20. Nxf8 {[%clk 0:02:04.4]} 20... Rxf8 {[%clk 0:00:40.9]} 21. Qc2
{[%clk 0:01:58.7]} 21... g5 {[%clk 0:00:35.6]} 22. b3 {[%clk 0:01:52]} 22... Na3
{[%clk 0:00:31.8]} 23. Qd2 {[%clk 0:01:51.9]} 23... gxf4 {[%clk 0:00:30.6]} 24.
Rg1 {[%clk 0:01:48]} 24... Kh8 {[%clk 0:00:29.3]} 25. Bf1 {[%clk 0:01:43.8]}
25... fxe3 {[%clk 0:00:20.4]} 26. Qxe3 {[%clk 0:01:31.3]} 26... Rxf2 {[%clk
0:00:21]} 27. Qg3 {[%clk 0:01:28.8]} 27... Qxg3 {[%clk 0:00:21.3]} 28. hxg3
{[%clk 0:01:28.4]} 28... Bxf1 {[%clk 0:00:14.8]} 29. Rcxf1 {[%clk 0:01:28.2]}
29... Rxf1 {[%clk 0:00:14.9]} 30. Rxf1 {[%clk 0:01:27.9]} 30... Nc2 {[%clk
0:00:09.4]} 31. Rf7 {[%clk 0:01:15.9]} 31... e3 {[%clk 0:00:08]} 32. Re7 {[%clk
0:01:04.2]} 32... e2 {[%clk 0:00:08.1]} 33. Rxe6 {[%clk 0:01:04.5]} 33... e1=Q+
{[%clk 0:00:08.3]} 34. Rxe1 {[%clk 0:01:04.6]} 34... Nxe1 {[%clk 0:00:09.2]} 35.
c6 {[%clk 0:00:56.7]} 35... Nc2 {[%clk 0:00:10.1]} 36. Kg2 {[%clk 0:00:55.8]}
36... Nxd4 {[%clk 0:00:11]} 37. Kf2 {[%clk 0:00:56.3]} 37... Nxb3 {[%clk
0:00:11.9]} 38. Ke3 {[%clk 0:00:56.5]} 38... Nc5 {[%clk 0:00:11.8]} 39. Kd4
{[%clk 0:00:56.5]} 39... b3 {[%clk 0:00:10.3]} 40. Kxc5 {[%clk 0:00:56]} 40...
b2 {[%clk 0:00:10.7]} 0-1

[Event "Betsys MČR v online bleskovém šachu 2021"]
[Site "Chess.com"]
[Date "2021.04.17"]
[Round "8"]
[White "SayQueen"]
[Black "Trener-Pokrocili"]
[Result "0-1"]
[WhiteElo "2005"]
[BlackElo "2251"]
[TimeControl "180+1"]
[EndTime "10:20:43 PDT"]
[Termination "Uživatel Trener-Pokrocili zvítězil po vzdání soupeře"]

1. e4 {[%clk 0:02:57.7]} 1... g6 {[%clk 0:02:59.5]} 2. d4 {[%clk 0:02:56.8]}
2... Bg7 {[%clk 0:02:59.3]} 3. Nc3 {[%clk 0:02:56.8]} 3... a6 {[%clk 0:02:59.4]}
4. Nf3 {[%clk 0:02:51.8]} 4... b5 {[%clk 0:02:58.5]} 5. a3 {[%clk 0:02:50]} 5...
Bb7 {[%clk 0:02:58.5]} 6. Bg5 {[%clk 0:02:47.5]} 6... d6 {[%clk 0:02:57.4]} 7.
Qd2 {[%clk 0:02:44.5]} 7... Nd7 {[%clk 0:02:53.3]} 8. Bd3 {[%clk 0:02:41.6]}
8... Nb6 {[%clk 0:02:49.1]} 9. O-O {[%clk 0:02:38.3]} 9... h6 {[%clk 0:02:48.2]}
10. Be3 {[%clk 0:02:35.4]} 10... Nf6 {[%clk 0:02:45.9]} 11. h3 {[%clk
0:02:33.1]} 11... Nfd7 {[%clk 0:02:43.1]} 12. Rfe1 {[%clk 0:02:27.3]} 12... Rc8
{[%clk 0:02:32.6]} 13. a4 {[%clk 0:02:17.1]} 13... b4 {[%clk 0:02:23.5]} 14. Ne2
{[%clk 0:02:16.3]} 14... a5 {[%clk 0:02:21]} 15. c3 {[%clk 0:02:10.2]} 15... c5
{[%clk 0:02:07.1]} 16. dxc5 {[%clk 0:01:54.7]} 16... Nxc5 {[%clk 0:01:57.8]} 17.
Bb5+ {[%clk 0:01:49.9]} 17... Kf8 {[%clk 0:01:52.6]} 18. Bxc5 {[%clk 0:01:46.8]}
18... dxc5 {[%clk 0:01:27.7]} 19. Qxd8+ {[%clk 0:01:40.6]} 19... Rxd8 {[%clk
0:01:27.4]} 20. Rad1 {[%clk 0:01:40]} 20... Rxd1 {[%clk 0:01:13.9]} 21. Rxd1
{[%clk 0:01:39.2]} 21... Kg8 {[%clk 0:01:14.1]} 22. cxb4 {[%clk 0:01:29.5]}
22... cxb4 {[%clk 0:01:11.5]} 23. b3 {[%clk 0:00:43.4]} 23... Bxe4 {[%clk
0:01:04.8]} 24. Nfd4 {[%clk 0:00:38.9]} 24... Kh7 {[%clk 0:00:52.9]} 25. f3
{[%clk 0:00:37.3]} 25... Bd5 {[%clk 0:00:52]} 26. Nc1 {[%clk 0:00:25]} 26... Rc8
{[%clk 0:00:44.9]} 27. Kf2 {[%clk 0:00:18.8]} 27... Bxd4+ {[%clk 0:00:38.3]} 28.
Rxd4 {[%clk 0:00:18.7]} 28... Rxc1 {[%clk 0:00:38.3]} 29. Kg3 {[%clk 0:00:18.9]}
29... e6 {[%clk 0:00:37.5]} 30. Be8 {[%clk 0:00:17.3]} 30... Kg7 {[%clk
0:00:36.3]} 31. Rd3 {[%clk 0:00:16.5]} 31... Rc3 {[%clk 0:00:34.5]} 0-1

[Event "Betsys MČR v online bleskovém šachu 2021"]
[Site "Chess.com"]
[Date "2021.04.17"]
[Round "8"]
[White "Lunaticx"]
[Black "vit_rosenbaum"]
[Result "1-0"]
[WhiteElo "2980"]
[BlackElo "2264"]
[TimeControl "180+1"]
[EndTime "10:20:44 PDT"]
[Termination "Uživatel Lunaticx zvítězil na čas"]

1. e4 {[%clk 0:02:52.6]} 1... e6 {[%clk 0:02:59.2]} 2. d4 {[%clk 0:02:52]} 2...
d5 {[%clk 0:02:59.7]} 3. Nd2 {[%clk 0:02:52.7]} 3... Nf6 {[%clk 0:02:59]} 4. e5
{[%clk 0:02:51.1]} 4... Nfd7 {[%clk 0:02:59.2]} 5. Bd3 {[%clk 0:02:49.2]} 5...
c5 {[%clk 0:02:59.6]} 6. c3 {[%clk 0:02:49.5]} 6... Nc6 {[%clk 0:03:00.1]} 7.
Ngf3 {[%clk 0:02:46.2]} 7... cxd4 {[%clk 0:02:54.9]} 8. cxd4 {[%clk 0:02:45.6]}
8... f6 {[%clk 0:02:54.3]} 9. exf6 {[%clk 0:02:43.1]} 9... Nxf6 {[%clk
0:02:54.2]} 10. O-O {[%clk 0:02:39.7]} 10... Bd6 {[%clk 0:02:54]} 11. Re1 {[%clk
0:02:37.8]} 11... O-O {[%clk 0:02:50.6]} 12. Nf1 {[%clk 0:02:37.7]} 12... Bd7
{[%clk 0:02:41]} 13. Ng3 {[%clk 0:02:37.2]} 13... g6 {[%clk 0:02:36.2]} 14. a3
{[%clk 0:02:35.8]} 14... Qc7 {[%clk 0:02:31.3]} 15. b4 {[%clk 0:02:32.4]} 15...
a6 {[%clk 0:02:30.6]} 16. Bh6 {[%clk 0:02:27.1]} 16... Rf7 {[%clk 0:02:17.3]}
17. Rc1 {[%clk 0:02:21.3]} 17... Ng4 {[%clk 0:02:05.5]} 18. Bg5 {[%clk
0:02:17.6]} 18... Raf8 {[%clk 0:01:59.6]} 19. Bb1 {[%clk 0:01:39.5]} 19... Bf4
{[%clk 0:01:04.8]} 20. Bxf4 {[%clk 0:01:35.5]} 20... Rxf4 {[%clk 0:01:03.9]} 21.
h3 {[%clk 0:01:30.3]} 21... Nh6 {[%clk 0:00:59.6]} 22. Qd2 {[%clk 0:01:15.4]}
22... Kg7 {[%clk 0:00:58.9]} 23. Qe3 {[%clk 0:01:12.1]} 23... Nf5 {[%clk
0:00:54.6]} 24. Nxf5+ {[%clk 0:01:08.8]} 24... exf5 {[%clk 0:00:45.5]} 25. Ne5
{[%clk 0:01:08.6]} 25... Rh4 {[%clk 0:00:30.3]} 26. Nf3 {[%clk 0:00:49.5]} 26...
Rf4 {[%clk 0:00:28.4]} 27. g3 {[%clk 0:00:48.6]} 27... Rxf3 {[%clk 0:00:24.5]}
28. Qxf3 {[%clk 0:00:49.5]} 28... Nxd4 {[%clk 0:00:24.4]} 29. Qxd5 {[%clk
0:00:46]} 29... Qb6 {[%clk 0:00:15.8]} 30. Qxd7+ {[%clk 0:00:43.3]} 30... Rf7
{[%clk 0:00:16.2]} 31. Qd5 {[%clk 0:00:42.6]} 1-0